bitfinex/quotes_SOLUSD_20240930
["timestamp","ask_amount","ask_price","bid_price","bid_amount"]
[1727702431823,1.58824845,157.42,157.39,15.8835]
[1727702432150,6.3523,157.43,157.39,15.8835]
[1727702432320,1.58827682,157.42,157.39,15.8835]
[1727702433256,1.58827682,157.42,157.38,6.3539]
[1727702433451,16.2063,157.43,157.36,15.8867]
[1727702433843,22.5586,157.43,157.39,6.3536]
[1727702434236,6.3516,157.44,157.4,6.3531]
[1727702434461,7.93974004,157.44,157.39,15.884]
[1727702434751,6.3516,157.44,157.39,22.2374]
[1727702435866,1.5881728,157.43,157.39,22.2374]
[1727702436158,7.9401728,157.43,157.39,15.884]
[1727702436746,6.3517,157.44,157.39,22.2373]
[1727702437363,7.93987199,157.44,157.39,22.2373]
[1727702438345,6.3517,157.44,157.39,22.2373]
[1727702438669,6.3508,157.46,157.41,6.3527]
[1727702439053,6.3508,157.46,157.42,6.73442635]
[1727702439362,7.93870034,157.46,157.42,6.3523]
[1727702439750,1.58790034,157.46,157.42,6.3523]
[1727702439946,6.3501,157.48,157.44,6.3516]
[1727702440964,6.3497,157.49,157.44,6.3515]
[1727702441146,1.58768757,157.48,157.44,6.3515]
[1727702441467,6.3497,157.49,157.44,6.3515]
[1727702441669,7.93778824,157.48,157.44,6.3515]
[1727702441837,6.3501,157.48,157.44,6.3515]
[1727702442764,1.58768823,157.47,157.44,6.3515]
[1727702443165,7.93838823,157.47,157.43,15.8795]
[1727702443371,7.93838823,157.47,157.41,6.3526]
[1727702443372,6.3511,157.46,157.41,6.3526]
[1727702443567,1.58798616,157.45,157.4,15.8825]
[1727702443874,6.3521,157.43,157.39,6.3535]
[1727702444086,6.3525,157.42,157.37,15.8855]
[1727702444266,6.3521,157.43,157.38,6.3539]
[1727702445574,7.9409743,157.42,157.37,22.2396]
[1727702445772,6.3528,157.41,157.37,22.2396]
[1727702445959,1.5882743,157.42,157.37,22.2396]
[1727702446265,6.3525,157.42,157.37,22.2396]
[1727702448184,6.3525,157.42,157.38,0.38301391]
[1727702448481,6.3525,157.42,157.37,22.2396]
[1727702449384,1.58834521,157.41,157.37,22.2396]
[1727702449769,7.94124521,157.41,157.37,22.2396]
[1727702449972,1.58842389,157.4,157.37,15.8855]
[1727702450180,6.3529,157.41,157.37,22.2398]
[1727702450368,6.3534,157.4,157.36,6.3547]
[1727702450798,6.3528,157.41,157.37,6.3544]
[1727702453198,6.3532,157.4,157.36,6.3547]
[1727702453669,6.3529,157.41,157.36,6.3547]
[1727702453867,6.3524,157.42,157.37,6.73732737]
[1727702455291,6.3524,157.42,157.37,6.354]
[1727702455481,1.58839018,157.41,157.37,6.354]
[1727702455883,6.3524,157.42,157.37,6.354]
[1727702456195,7.94129346,157.41,157.37,6.354]
[1727702456695,1.58839376,157.4,157.36,22.2412]
[1727702457167,7.94159376,157.4,157.36,22.2412]
[1727702457371,6.3532,157.4,157.36,22.2412]
[1727702457789,1.58849328,157.39,157.36,15.8865]
[1727702457988,6.3536,157.39,157.36,15.8865]
[1727702458184,1.58853212,157.38,157.33,16.126]
[1727702458500,6.3543,157.38,157.33,22.2454]
[1727702459086,6.3537,157.39,157.34,6.73928148]
[1727702459284,6.3533,157.4,157.36,6.3548]
[1727702459873,31.223,157.45,157.31,31.7843]
[1727702459874,31.223,157.45,157.37,6.73754618]
[1727702460079,6.3527,157.42,157.37,6.73754618]
[1727702460385,6.3527,157.42,157.38,6.3539]
[1727702460594,6.3521,157.43,157.38,6.3539]
[1727702461296,6.3516,157.44,157.4,6.3531]
[1727702461470,6.3521,157.43,157.39,22.2372]
[1727702464091,1.58818587,157.42,157.36,6.1197]
[1727702464304,6.3527,157.42,157.38,6.3539]
[1727702465001,6.3521,157.43,157.38,6.3539]
[1727702465296,6.3521,157.43,157.39,0.38285279]
[1727702465476,6.3521,157.43,157.39,6.3535]
[1727702465678,6.3521,157.43,157.39,6.73628397]
[1727702466085,6.3521,157.43,157.39,6.3535]
[1727702466277,1.58824886,157.42,157.38,15.8845]
[1727702466480,7.94064886,157.42,157.38,22.2384]
[1727702466706,6.3524,157.42,157.38,22.2384]
[1727702469509,6.3513,157.45,157.41,6.3526]
[1727702469681,6.64452839,157.48,157.41,0.38221288]
[1727702470010,6.3505,157.47,157.43,6.352]
[1727702470392,6.3501,157.48,157.44,6.73335111]
[1727702471484,15.8717,157.52,157.43,6.3519]
[1727702471485,6.3504,157.47,157.43,6.3519]
[1727702471685,6.3509,157.46,157.42,31.8782]
[1727702471888,1.58774386,157.46,157.39,15.8835]
[1727702472078,31.9778,157.48,157.39,22.2368]
[1727702472284,15.8774,157.46,157.36,22.0061]
[1727702472589,1.58830653,157.45,157.36,22.0061]
[1727702472991,1.58830653,157.45,157.36,29.5946235]
[1727702473193,6.3528,157.41,157.37,6.3544]
[1727702473504,6.3532,157.4,157.36,28.3608]
[1727702474290,6.3532,157.4,157.37,4.06665634]
[1727702474502,1.58830653,157.45,157.37,4.06665634]
[1727702474703,6.3529,157.41,157.37,7.59481626]
[1727702475605,19.11,157.47,157.34,15.4296]
[1727702475606,6.3536,157.39,157.34,15.4296]
[1727702475810,6.3536,157.39,157.35,7.60071414]
[1727702475998,6.3536,157.39,157.34,21.7852]
[1727702476198,6.3536,157.39,157.35,7.60160842]
[1727702476414,1.5885738,157.38,157.35,7.60218102]
[1727702476592,1.5885738,157.38,157.34,13.95768102]
[1727702476792,30.9939,157.42,157.35,13.95728102]
[1727702476988,6.3529,157.41,157.36,6.3548]
[1727702477406,6.3529,157.41,157.36,0.38326108]
[1727702477606,6.3529,157.41,157.37,6.3544]
[1727702477815,6.3525,157.42,157.38,6.73706426]
[1727702481509,6.3525,157.42,157.38,6.3539]
[1727702481800,7.94110508,157.41,157.37,22.2401]
[1727702482005,6.3528,157.41,157.37,15.8857]
[1727702482214,1.58841586,157.4,157.37,15.8857]
[1727702482406,7.94171586,157.4,157.37,15.8857]
[1727702482609,6.3533,157.4,157.36,6.3547]
[1727702482818,6.3537,157.39,157.35,13.95444688]
[1727702483008,15.8805,157.43,157.35,7.59934688]
[1727702483208,6.3541,157.38,157.35,7.59934688]
[1727702483612,6.3537,157.39,157.35,11.12955101]
[1727702483829,6.3537,157.39,157.35,7.59931485]
[1727702484125,6.3537,157.39,157.35,7.5994652]
[1727702486507,6.3537,157.39,157.35,7.98317804]
[1727702486704,15.8805,157.43,157.35,6.73871284]
[1727702486926,6.3533,157.4,157.35,10.80877886]
[1727702487614,6.3532,157.41,157.36,6.3547]
[1727702487812,6.3532,157.41,157.37,6.73773723]
[1727702489612,6.3532,157.41,157.37,6.3544]
[1727702490541,6.3524,157.42,157.38,6.3537]
[1727702490833,31.5925,157.46,157.4,6.3531]
[1727702490834,6.3516,157.44,157.4,6.3531]
[1727702491830,15.7148,157.46,157.41,6.73510124]
[1727702492031,6.3509,157.46,157.42,6.3522]
[1727702492411,6.3509,157.46,157.41,6.3527]
[1727702492809,15.8746,157.49,157.42,0.38202977]
[1727702493112,6.3506,157.47,157.43,6.3519]
[1727702494535,6.3506,157.47,157.42,15.8807]
[1727702494536,1.58785012,157.46,157.42,15.8807]
[1727702494838,6.3512,157.45,157.42,15.8807]
[1727702495341,6.3512,157.45,157.41,6.3527]
[1727702496421,6.3512,157.45,157.4,6.3531]
[1727702496631,7.93972662,157.44,157.4,6.3531]
[1727702496837,6.3517,157.44,157.4,6.3531]
[1727702497021,6.3526,157.42,157.39,3.52627427]
[1727702497230,1.58834958,157.41,157.37,3.52627427]
[1727702497422,6.3535,157.4,157.36,22.2413]
[1727702497927,1.58849962,157.39,157.36,19.41449315]
[1727702498124,1.58849962,157.39,157.35,3.52789315]
[1727702498337,6.3543,157.38,157.35,3.52789315]
[1727702499443,6.3543,157.38,157.34,3.52907628]
[1727702499922,6.3543,157.38,157.34,7.05839225]
[1727702500123,1.58874027,157.37,157.34,3.52907628]
[1727702500541,6.3552,157.35,157.34,3.52907628]
[1727702500918,6.3549,157.36,157.34,3.52907628]
[1727702501117,6.3544,157.38,157.34,3.52907628]
[1727702501341,6.4616,157.4,157.34,3.52907628]
[1727702501515,6.3544,157.37,157.34,3.52907628]
[1727702501721,1.58885089,157.36,157.34,3.52907628]
[1727702502343,7.94375089,157.36,157.34,3.52907628]
[1727702502517,6.3549,157.36,157.34,3.52907628]
[1727702503139,6.3553,157.35,157.31,3.52989858]
[1727702503642,6.3553,157.35,157.3,9.8858254]
[1727702504720,1.58912909,157.34,157.3,9.8858254]
[1727702504921,6.3553,157.35,157.3,9.8858254]
[1727702505128,1.58912861,157.34,157.3,9.8858254]
[1727702505824,6.3553,157.35,157.31,6.3567]
[1727702506432,6.3553,157.35,157.3,9.8857254]
[1727702508242,7.94476649,157.34,157.3,9.8857254]
[1727702508447,7.94476649,157.34,157.3,6.3571]
[1727702509134,1.58918921,157.33,157.29,22.2512]
[1727702509653,6.3556,157.34,157.29,22.2512]
[1727702510541,6.356,157.33,157.29,22.2512]
[1727702510729,7.94529862,157.33,157.29,22.2512]
[1727702510930,1.58932899,157.32,157.29,22.2512]
[1727702511555,1.58932899,157.32,157.29,15.8937]
[1727702511851,1.58932899,157.32,157.28,6.3579]
[1727702511852,7.94582899,157.32,157.28,6.3579]
[1727702512030,6.3565,157.32,157.28,6.3579]
[1727702512231,1.58943885,157.31,157.28,6.3579]
[1727702513043,1.58943786,157.31,157.28,6.3579]
[1727702513251,1.58943786,157.31,157.27,6.3583]
[1727702514261,6.3565,157.32,157.27,6.3583]
[1727702514433,6.3565,157.32,157.26,15.8966]
[1727702514637,6.3565,157.32,157.28,6.358]
[1727702515532,1.58947595,157.31,157.28,6.358]
[1727702516343,6.3565,157.32,157.28,6.358]
[1727702516548,6.356,157.34,157.29,6.3575]
[1727702516728,6.356,157.34,157.3,6.3571]
[1727702516931,6.3553,157.35,157.3,6.3571]
[1727702517246,6.3553,157.35,157.31,6.3567]
[1727702517433,1.58909354,157.34,157.3,15.8928]
[1727702517639,1.58909354,157.34,157.3,22.2499]
[1727702517849,6.3553,157.35,157.3,22.2499]
[1727702518057,1.58910176,157.34,157.3,22.2499]
[1727702520055,1.58910176,157.34,157.31,6.3568]
[1727702520356,6.3553,157.35,157.31,6.3568]
[1727702520533,1.58909894,157.34,157.31,6.3568]
[1727702521356,7.94489894,157.34,157.3,22.2499]
[1727702521560,15.7076,157.37,157.31,6.3567]
[1727702521777,6.3549,157.36,157.32,6.3564]
[1727702522060,6.3549,157.36,157.31,6.74116434]
[1727702522233,6.3549,157.36,157.31,6.3567]
[1727702523057,15.7076,157.37,157.3,15.8928]
[1727702523266,7.94461055,157.35,157.3,22.2499]
[1727702524239,1.58913062,157.34,157.3,22.2499]
[1727702526753,6.3555,157.35,157.3,22.2499]
[1727702526754,6.3555,157.35,157.3,15.8928]
[1727702526946,6.3555,157.35,157.31,6.3568]
[1727702527566,1.58911652,157.34,157.31,6.3568]
[1727702528159,6.3555,157.35,157.31,6.3568]
[1727702528549,6.3555,157.35,157.31,6.74148232]
[1727702528752,15.7076,157.37,157.31,0.38466894]
[1727702528969,6.3541,157.38,157.34,6.3553]
[1727702529146,6.3541,157.38,157.32,15.8908]
[1727702529472,6.3541,157.38,157.33,6.3557]
[1727702530963,6.3541,157.38,157.34,6.3553]
[1727702532048,1.58874272,157.37,157.34,6.3553]
[1727702532853,12.8148,157.4,157.35,6.3551]
[1727702533057,12.8148,157.4,157.34,22.2441]
[1727702533058,6.354,157.38,157.34,22.2441]
[1727702533263,1.58881731,157.37,157.34,15.8886]
[1727702535173,7.94331731,157.37,157.32,6.3564]
[1727702535364,7.94389391,157.36,157.32,6.3564]
[1727702536878,1.58902245,157.35,157.32,6.3564]
[1727702537457,6.4616,157.4,157.31,15.8918]
[1727702537662,6.4616,157.4,157.33,6.356]
[1727702537663,6.3546,157.37,157.33,6.356]
[1727702537863,1.58893052,157.36,157.33,6.356]
[1727702538466,1.58893052,157.36,157.32,6.3563]
[1727702539675,6.3549,157.36,157.32,6.3563]
[1727702539860,1.58906492,157.35,157.32,6.3563]
[1727702540060,1.58906492,157.35,157.31,22.2485]
[1727702540261,6.3549,157.36,157.31,22.2485]
[1727702540665,6.3549,157.36,157.32,6.3563]
[1727702540870,6.4616,157.4,157.32,6.3563]
[1727702541180,6.3547,157.37,157.32,6.3563]
[1727702543486,1.58898134,157.36,157.32,6.3563]
[1727702545693,6.3547,157.37,157.33,6.3559]
[1727702553687,1.58897463,157.36,157.33,6.3559]
[1727702553882,6.3537,157.39,157.35,6.3552]
[1727702555091,6.4616,157.4,157.33,15.8893]
[1727702555092,7.94280917,157.38,157.34,6.3555]
[1727702558084,6.3544,157.37,157.33,22.2452]
[1727702558380,1.5888716,157.36,157.33,22.2452]
[1727702559200,6.3542,157.38,157.33,22.2452]
[1727702559388,7.94336913,157.37,157.33,22.2452]
[1727702561077,6.3545,157.37,157.33,22.2452]
[1727702562784,6.3541,157.38,157.34,6.3555]
[1727702563288,6.3541,157.38,157.35,6.3552]
[1727702563901,6.3541,157.38,157.34,6.3555]
[1727702565889,1.58876503,157.37,157.34,6.3555]
[1727702568273,6.3541,157.38,157.34,6.3555]
[1727702569503,1.58876465,157.37,157.34,6.3555]
[1727702572911,6.3533,157.4,157.35,15.8878]
[1727702573221,6.3533,157.4,157.36,6.3544]
[1727702573414,6.3524,157.42,157.38,6.3537]
[1727702573707,31.4759,157.45,157.37,15.8856]
[1727702573882,6.3524,157.42,157.38,6.3539]
[1727702577091,15.597,157.45,157.39,15.8839]
[1727702577329,6.3505,157.47,157.42,6.3521]
[1727702577628,6.3508,157.46,157.42,6.3523]
[1727702577847,6.3504,157.47,157.42,6.3523]
[1727702578504,22.463,157.49,157.44,6.3516]
[1727702580021,7.21548516,157.52,157.47,6.3504]
[1727702580199,6.3484,157.52,157.47,6.3504]
[1727702580804,6.3481,157.53,157.48,6.3499]
[1727702581893,6.3481,157.53,157.47,15.8753]
[1727702582096,6.3476,157.54,157.5,6.3491]
[1727702582417,1.10610453,157.61,157.54,6.3474]
[1727702582418,6.3459,157.59,157.54,6.3474]
[1727702582710,6.346,157.58,157.53,6.3479]
[1727702582901,6.346,157.58,157.52,10.55589845]
[1727702583102,6.3459,157.59,157.54,6.3475]
[1727702585019,6.3459,157.59,157.52,10.55589845]
[1727702585358,6.3446,157.62,157.57,6.3462]
[1727702585707,6.3448,157.61,157.56,6.3467]
[1727702585955,7.93164819,157.6,157.55,22.2144]
[1727702586122,7.93164819,157.6,157.55,15.8673]
[1727702586319,6.3447,157.61,157.57,6.3463]
[1727702586695,6.3447,157.61,157.55,15.8673]
[1727702587021,6.3447,157.61,157.56,6.3467]
[1727702589822,6.3444,157.62,157.57,6.3463]
[1727702590323,16.3504,157.63,157.55,16.24584636]
[1727702590501,1.58668117,157.62,157.55,15.8673]
[1727702591318,16.3504,157.63,157.55,15.8673]
[1727702591502,6.3455,157.6,157.56,6.3467]
[1727702594225,6.3457,157.59,157.55,15.8673]
[1727702594547,1.58673766,157.58,157.55,15.8673]
[1727702594725,6.3457,157.59,157.55,15.8673]
[1727702595432,6.3457,157.59,157.55,22.2143]
[1727702597245,7.93273728,157.58,157.54,6.3475]
[1727702597435,1.58680772,157.57,157.54,6.3475]
[1727702598529,1.58680772,157.57,157.51,6.3487]
[1727702598843,6.3475,157.55,157.5,16.132]
[1727702599032,1.5871082,157.54,157.5,16.132]
[1727702600245,15.8644,157.59,157.5,16.132]
[1727702600423,6.3464,157.57,157.53,6.3478]
[1727702600623,6.3464,157.57,157.52,6.3482]
[1727702600941,1.58699264,157.56,157.52,6.3482]
[1727702601193,1.58699264,157.56,157.53,6.3478]
[1727702601355,6.3464,157.57,157.53,6.3478]
[1727702601656,6.346,157.58,157.53,6.3478]
[1727702603025,15.8611,157.62,157.53,6.3478]
[1727702603245,6.3465,157.57,157.53,6.3478]
[1727702605235,15.8611,157.62,157.53,6.3478]
[1727702605458,6.346,157.58,157.54,6.3475]
[1727702605744,6.3456,157.59,157.55,6.347]
[1727702606641,6.3456,157.59,157.54,6.3474]
[1727702608139,15.8611,157.62,157.54,6.3474]
[1727702608338,6.346,157.58,157.54,6.3474]
[1727702608555,1.58690397,157.57,157.53,22.2174]
[1727702609132,6.346,157.58,157.53,22.2174]
[1727702609961,6.346,157.58,157.54,6.3474]
[1727702610329,6.346,157.58,157.53,15.8695]
[1727702610330,6.3456,157.59,157.55,6.3471]
[1727702611253,1.58673149,157.58,157.55,6.3471]
[1727702611465,7.93263149,157.58,157.54,6.3475]
[1727702611677,1.5868122,157.57,157.54,6.3475]
[1727702613933,6.3471,157.56,157.52,6.3483]
[1727702614157,1.58699572,157.55,157.52,6.3483]
[1727702616047,15.2728,157.57,157.46,15.9023]
[1727702616258,6.3485,157.52,157.46,22.2266]
[1727702616464,1.58749202,157.51,157.46,22.2266]
[1727702616646,7.93639202,157.51,157.46,15.8761]
[1727702616839,50.2488,157.57,157.43,6.5004]
[1727702616840,6.3497,157.49,157.43,6.3516]
[1727702617052,1.5877112,157.48,157.42,32.2945]
[1727702617353,1.5877112,157.48,157.44,6.3514]
[1727702619376,1.5877112,157.48,157.43,6.352]
[1727702620354,1.5877112,157.48,157.42,15.8803]
[1727702620355,6.3504,157.47,157.42,22.2327]
[1727702620542,1.58800413,157.46,157.42,22.2327]
[1727702620755,7.93880413,157.46,157.4,6.3528]
[1727702620969,1.58809042,157.45,157.4,6.3528]
[1727702621166,1.58809042,157.45,157.39,15.884]
[1727702621375,6.3516,157.44,157.39,22.2375]
[1727702621659,1.58829088,157.43,157.39,15.884]
[1727702622037,7.94069088,157.43,157.38,6.3539]
[1727702622248,6.3531,157.41,157.36,22.2413]
[1727702622459,1.58859729,157.4,157.36,22.2413]
[1727702624561,6.3525,157.42,157.38,6.3539]
[1727702624868,6.352,157.43,157.38,6.3539]
[1727702627459,1.58839142,157.42,157.38,6.3539]
[1727702627801,6.3529,157.41,157.36,22.2414]
[1727702627972,1.58847004,157.4,157.36,22.2414]
[1727702628183,1.58847004,157.4,157.36,15.8869]
[1727702628184,6.3532,157.4,157.36,15.8869]
[1727702628406,1.58864799,157.39,157.36,15.8869]
[1727702629267,7.94234799,157.39,157.35,6.3551]
[1727702629460,1.58871963,157.38,157.35,6.3551]
[1727702629975,6.3532,157.4,157.35,6.3551]
[1727702630183,15.6392,157.44,157.33,15.8896]
[1727702630371,6.3529,157.41,157.37,6.3543]
[1727702634408,6.3524,157.42,157.38,6.3538]
[1727702635467,1.58838481,157.41,157.38,6.3538]
[1727702636382,6.3524,157.42,157.38,6.3538]
[1727702636685,1.58838409,157.41,157.38,6.3538]
[1727702637081,6.3524,157.42,157.38,6.3538]
[1727702638171,7.94138485,157.41,157.37,22.24]
[1727702638377,7.94138485,157.41,157.37,15.8857]
[1727702638567,1.58838485,157.41,157.37,15.8857]
[1727702638780,6.3533,157.4,157.37,15.8857]
[1727702638967,1.58855706,157.39,157.37,15.8857]
[1727702639170,7.94225706,157.39,157.34,15.8884]
[1727702639474,7.94280239,157.38,157.34,22.2439]
[1727702639671,6.3541,157.38,157.34,22.2439]
[1727702639884,1.58872396,157.37,157.31,15.8914]
[1727702640180,6.3549,157.36,157.32,6.3564]
[1727702640379,1.58872396,157.37,157.32,6.3564]
[1727702640693,6.3545,157.37,157.32,6.3564]
[1727702642078,6.3545,157.37,157.33,6.3559]
[1727702642583,6.3545,157.37,157.32,6.3563]
[1727702642757,15.3791,157.38,157.32,6.3563]
[1727702642961,15.3791,157.38,157.31,15.3914]
[1727702642962,6.3553,157.35,157.31,21.7481]
[1727702643164,1.58900075,157.34,157.31,15.3914]
[1727702643373,7.94470075,157.34,157.29,6.3575]
[1727702643684,1.58918824,157.33,157.29,6.3575]
[1727702644785,1.58918824,157.33,157.28,22.2527]
[1727702644983,1.58942304,157.36,157.28,22.2527]
[1727702645191,6.3565,157.32,157.28,22.2527]
[1727702645487,1.58942331,157.31,157.28,22.2527]
[1727702646582,6.3565,157.32,157.28,22.2527]
[1727702649678,6.356,157.33,157.28,22.2527]
[1727702649984,6.3556,157.34,157.29,0.38527624]
[1727702650685,6.3556,157.34,157.28,15.8947]
[1727702651182,6.3556,157.34,157.3,6.3572]
[1727702651573,6.3556,157.34,157.29,6.3576]
[1727702651774,1.58924529,157.33,157.29,6.3576]
[1727702651970,1.58924529,157.33,157.26,10.18326769]
[1727702652173,15.3791,157.38,157.32,6.3564]
[1727702652571,6.3552,157.36,157.31,6.3567]
[1727702652772,7.94427338,157.35,157.31,6.3567]
[1727702653685,1.58907321,157.34,157.31,6.3567]
[1727702653875,7.94497321,157.34,157.3,15.8926]
[1727702654186,1.58922738,157.33,157.27,15.8957]
[1727702654490,1.5894174,157.37,157.27,15.8957]
[1727702654987,6.3563,157.33,157.28,6.3578]
[1727702655297,1.58941664,157.32,157.28,6.3578]
[1727702659584,6.3563,157.33,157.28,6.3578]
[1727702661196,6.3563,157.33,157.29,6.3575]
[1727702661390,6.3563,157.33,157.28,0.38530074]
[1727702661391,6.3557,157.34,157.3,6.3571]
[1727702664791,6.3557,157.34,157.29,6.3575]
[1727702668897,6.356,157.33,157.29,6.3575]
[1727702670901,1.58924204,157.32,157.29,6.3575]
[1727702671203,6.3569,157.31,157.27,15.8957]
[1727702671530,1.58943435,157.3,157.27,15.8957]
[1727702671822,7.94633317,157.31,157.27,22.2539]
[1727702672782,7.94633317,157.31,157.22,57.47676769]
[1727702672783,6.3573,157.3,157.26,6.3587]
[1727702673093,1.58955371,157.29,157.26,6.3587]
[1727702676204,6.3573,157.3,157.26,6.3587]
[1727702678715,1.58954188,157.29,157.26,6.3587]
[1727702682697,6.3573,157.3,157.26,6.3587]
[1727702694016,1.5894519,157.31,157.24,15.8985]
[1727702694221,6.3583,157.28,157.24,22.258]
[1727702700226,6.3577,157.29,157.25,6.359]
[1727702700431,31.5154,157.32,157.25,0.38617707]
[1727702700734,6.3569,157.31,157.27,6.3584]
[1727702701252,6.3569,157.31,157.27,6.74405229]
[1727702701640,15.624,157.32,157.29,6.3575]
[1727702701832,15.624,157.32,157.29,6.74260018]
[1727702703235,15.624,157.32,157.29,6.3575]
[1727702704460,1.58921037,157.31,157.25,15.8977]
[1727702705428,15.624,157.32,157.26,0.38551153]
[1727702705920,21.9804,157.32,157.28,6.358]
[1727702706933,15.624,157.32,157.27,15.8958]
[1727702707124,6.3569,157.31,157.27,22.2542]
[1727702707827,7.94657693,157.3,157.27,15.8958]
[1727702709743,6.3572,157.3,157.27,15.8958]
[1727702710316,21.9807,157.32,157.28,6.74358455]
[1727702710613,21.9807,157.32,157.27,15.8958]
[1727702710815,21.9807,157.32,157.27,22.2541]
[1727702712033,21.9807,157.32,157.28,6.358]
[1727702712212,6.357,157.31,157.27,22.2541]
[1727702713533,15.624,157.32,157.27,15.8958]
[1727702713725,21.9807,157.32,157.28,6.358]
[1727702713915,15.624,157.32,157.27,15.8958]
[1727702714111,6.3569,157.31,157.27,22.2541]
[1727702715019,15.624,157.32,157.29,6.3576]
[1727702715248,15.8876,157.36,157.3,0.38505222]
[1727702715249,31.2959,157.36,157.3,0.38505222]
[1727702715544,31.2959,157.36,157.27,26.07906769]
[1727702716244,6.3561,157.33,157.29,6.3576]
[1727702717837,6.3557,157.34,157.3,6.74216215]
[1727702718045,6.3557,157.34,157.3,6.3572]
[1727702718614,6.3557,157.34,157.29,6.3575]
[1727702719740,6.3561,157.33,157.29,6.3575]
[1727702720329,6.3561,157.33,157.27,26.07906769]
[1727702720529,6.3561,157.33,157.28,6.3578]
[1727702722633,6.3561,157.33,157.29,6.74256537]
[1727702723150,31.2959,157.36,157.29,6.74256537]
[1727702723151,6.3557,157.34,157.29,6.74256537]
[1727702723324,6.3557,157.34,157.3,6.3572]
[1727702723519,31.2959,157.36,157.31,0.38483793]
[1727702723520,6.3555,157.35,157.31,0.38483793]
[1727702724552,21.7632,157.36,157.31,0.38483793]
[1727702724750,6.3552,157.35,157.31,6.74153793]
[1727702725049,6.3552,157.35,157.31,6.3567]
[1727702725544,6.3552,157.35,157.31,6.74107714]
[1727702725725,6.3552,157.35,157.31,6.3567]
[1727702730857,7.94455487,157.34,157.3,6.3571]
[1727702731029,6.3556,157.34,157.3,6.3571]
[1727702736163,21.7632,157.36,157.31,6.3565]
[1727702736365,23.3521717,157.36,157.31,6.3565]
[1727702736533,6.3555,157.35,157.29,26.07706769]
[1727702736866,6.3561,157.33,157.29,32.43466769]
[1727702738331,1.5889717,157.34,157.29,32.43466769]
[1727702738332,6.3565,157.32,157.29,15.8938]
[1727702740736,15.4083,157.36,157.29,15.8938]
[1727702741076,6.3561,157.33,157.29,22.2514]
[1727702744957,6.3561,157.33,157.29,15.8938]
[1727702745140,7.94562599,157.32,157.27,6.3582]
[1727702745344,6.3564,157.32,157.27,6.3582]
[1727702746269,15.4083,157.36,157.29,6.3576]
[1727702747285,6.3545,157.37,157.32,16.53956769]
[1727702747458,32.4763,157.4,157.33,0.38395209]
[1727702747669,6.3549,157.36,157.33,0.38395209]
[1727702748641,6.3549,157.36,157.32,16.53956769]
[1727702748845,6.3549,157.36,157.32,10.18326769]
[1727702749050,6.3549,157.36,157.3,15.8928]
[1727702749051,6.3556,157.35,157.3,22.2499]
[1727702749366,6.356,157.34,157.3,15.8928]
[1727702751037,1.58897655,157.37,157.28,16.0563]
[1727702751237,6.3564,157.32,157.28,16.0563]
[1727702752045,6.3564,157.32,157.28,22.4143]
[1727702753444,6.3557,157.34,157.29,6.3574]
[1727702753669,6.3557,157.34,157.28,16.0563]
[1727702753670,6.3561,157.33,157.28,16.0563]
[1727702753848,6.3561,157.33,157.28,22.4143]
[1727702754866,7.94592182,157.32,157.28,16.0563]
[1727702755053,6.3568,157.32,157.28,16.0563]
[1727702755449,15.8876,157.36,157.27,15.8958]
[1727702755450,6.3573,157.3,157.27,15.8958]
[1727702755663,6.3573,157.3,157.27,16.28128129]
[1727702756449,6.357,157.31,157.27,16.28128129]
[1727702757666,6.357,157.31,157.27,22.63968129]
[1727702758467,6.357,157.31,157.27,22.2542]
[1727702760288,15.7556,157.38,157.24,15.5097]
[1727702760513,21.8477,157.32,157.21,12.23984081]
[1727702760672,1.58975553,157.31,157.21,5.87904081]
[1727702760877,6.3596,157.25,157.21,21.78044081]
[1727702761185,6.3596,157.25,157.21,15.9014]